Cogmind - Beta 15 @@@ ROGUE MODE // 2025.05.27 @ 20:37:47 Player: pirx Result: Destroyed by B-36 Bruiser with Hammer Performance ------------- Evolutions (2) 1000 Regions Visited (4) 800 Robots Destroyed (29) 145 Value Destroyed (1034) 1034 Prototype IDs (0) 0 Alien Tech Used (0) 0 Bonus (266) 266 TOTAL SCORE: 3245 Bonus ------- Pacifist 200 Follower Combat Kills 66 Cogmind --------- Core Integrity 0/550 Matter 255/300 Energy 15/100 System Corruption 0% Temperature Cool (0) Movement Treading (160) Location -8/Materials Parts ------- > --- POWER (1) -------- (None) > --- PROPULSION (4) --- Light Treads Light Treads > --- UTILITY (3) ------ Cooling System > --- WEAPON (3) ------- Field Laser > --- INVENTORY (5) ---- (None) Peak State ------------ > --- POWER ------------ Reinforced Ion Engine > --- PROPULSION ------- Aluminum Leg Aluminum Leg Aluminum Leg Aluminum Leg > --- UTILITY ---------- Small Storage Unit High-capacity Battery Light Armor Plating > --- WEAPON ----------- Particle Cannon Light Assault Rifle EMP Blaster > --- INVENTORY -------- Light Ion Engine Light Treads Light Treads Aluminum Leg Cooling System [Rating: 14] Favorites ----------- Power Light Ion Engine Engine Light Ion Engine Propulsion Aluminum Leg Treads Light Treads Leg Aluminum Leg Utility High-capacity Battery Device ECM Suite Storage High-capacity Battery Protection Light Armor Plating Weapon Light Assault Rifle Energy Gun Field Laser Energy Cannon Particle Cannon Ballistic Gun Light Assault Rifle Ballistic Cannon Improved Light Cannon Launcher Grenade Launcher Build | -11 -10 -9 -9 -8 ------- Run | Yrd Mat Mat Min Mat Slots Evolved 4 | . . 2 . 2 Power . | . . . . . Propulsion 2 | . . 2 . . Utility 1 | . . . . 1 Weapon 1 | . . . . 1 Parts Attached 28 | 6 4 6 4 8 Power 4 | 1 . 1 1 1 Engine 4 | 1 . 1 1 1 Core . | . . . . . Reactor . | . . . . . Propulsion 10 | 2 . 4 1 3 Treads 2 | . . . . 2 Leg 8 | 2 . 4 1 1 Wheel . | . . . . . Hover . | . . . . . Flight . | . . . . . Utility 6 | . 3 1 . 2 Device 2 | . 1 . . 1 Storage 3 | . 2 1 . . Processor . | . . . . . Hackware . | . . . . . Protection 1 | . . . . 1 Artifact . | . . . . . Weapon 8 | 3 1 . 2 2 Energy Gun 2 | 1 . . . 1 Energy Cannon 1 | . . . 1 . Ballistic Gun 2 | 2 . . . . Ballistic Cannon 1 | . . . 1 . Launcher 2 | . 1 . . 1 Special Weapon . | . . . . . Impact Weapon . | . . . . . Slashing Weapon . | . . . . . Piercing Weapon . | . . . . . Special Melee Weapon . | . . . . . Unidentified Prototypes . | . . . . . Parts Lost 16 | . . 2 . 14 Power 3 | . . 1 . 2 Propulsion 5 | . . . . 5 Utility 3 | . . . . 3 Weapon 5 | . . 1 . 4 Highest Loss Streak 11 | . . 1 . 11 To Critical Strikes . | . . . . . Average Backups 6 | 3 4 7 7 4 Power . | . 1 . 1 . Propulsion 2 | 1 2 2 3 2 Utility 1 | . . 1 1 . Weapon 1 | . 1 2 2 . Tool/Special . | . . . . . Unused Backups 1 | . . 1 . . Power . | . . . . . Propulsion 1 | . . 1 . . Utility . | . . . . . Weapon . | . . . . . Tool/Special . | . . . . . Average Slot Usage (%) 86 | . 82 87 100 70 Engine 10 | . 14 10 11 7 Leg 33 | . 28 33 44 24 Storage 17 | . 9 22 22 15 Energy Cannon 3 | . . . 7 6 Ballistic Gun 12 | . 17 11 11 9 Launcher 5 | . 10 10 . 2 Peak Build Rating 14 | 5 7 10 12 14 Average Rating 8 | 2 5 8 10 9 On Entrance 6 | . 5 7 9 12 Naked Turns 4 | . . . . 4 Heaviest Build 31 | 5 16 16 24 31 Greatest Support 40 | 20 20 40 40 40 Greatest Overweight (x) 3 | . . . . 3 Average Overweight (x) . | . . . . . Largest Inventory Capacity 25 | 5 8 25 8 8 Average Capacity 7 | 5 5 8 8 7 Most Carried 8 | 5 6 8 8 7 Average Carried 6 | 3 4 7 7 4 Final Capacity 8 | 5 8 8 8 5 Final Carried 8 | 4 6 8 8 . Class Distribution -------------------- 82% | Mutant 9% | Scavenger-Tank 6% | Scavenger-Mutant Dominant Class ---------------- Mutant | -10/Materials Mutant | -9/Materials Mutant | -9/Mines Scavenger-Tank | -8/Materials Resources | -11 -10 -9 -9 -8 ----------- Run | Yrd Mat Mat Min Mat Matter Collected 720 | 254 26 173 180 87 Remotely . | . . . . . Salvage Created 966 | . . 467 55 444 Parts 56 | . . 39 5 12 Haulers Intercepted 1 | . . 1 . . Recyclers Shooed 3 | . . 2 . 1 Parts Field Recycled . | . . . . . Retrieved Matter . | . . . . . Parts Self-Destructed . | . . . . . Prevented . | . . . . . Kills | -11 -10 -9 -9 -8 ------- Run | Yrd Mat Mat Min Mat Combat Hostiles Destroyed 21 | . . 10 3 8 Guns 4 | . . 2 1 1 Cannons 3 | . . . 2 1 AOE 11 | . . 8 . 3 Classes Destroyed 9 | . . 8 1 . Worker 1 | . . 1 . . Builder 4 | . . 4 . . Hauler 1 | . . 1 . . Recycler 1 | . . 1 . . Watcher 1 | . . 1 . . Swarmer 2 | . . . 2 . Grunt 12 | . . 6 . 6 Duelist 1 | . . 1 . . Sentry 6 | . . 3 1 2 Best Kill Streak 7 | . . 7 2 6 Combat Bots Only 6 | . . 3 2 6 Max Kills in Single Turn 4 | . . 4 1 1 Gunslinging . | . . . . . Exploded 2 | . . 2 . 1 Melee . | . . . . . Uniques/NPCs Destroyed . | . . . . . Combat | -11 -10 -9 -9 -8 -------- Run | Yrd Mat Mat Min Mat Hostile Shots Fired 230 | . . 42 18 170 Missed 75 | . . 17 6 52 Hits 155 | . . 25 12 118 Melee 5 | . . . . 5 Projectile 150 | . . 25 12 113 Critical Strikes 8 | . . 1 1 6 Damage Taken 2398 | . . 348 148 1902 Core 635 | . . 67 13 555 Absorbed by Shields . | . . . . . Core Remaining (%) 93 | 100 100 . 80 . Volleys Fired 76 | . . 29 9 38 Largest 3 | . . 2 2 3 Hottest 121 | . . 50 88 121 Shots Fired 124 | . . 47 18 59 Gun 74 | . . 29 9 36 Cannon 21 | . . . 9 12 Launcher 29 | . . 18 . 11 Special . | . . . . . Kinetic 74 | . . 29 14 31 Thermal 21 | . . . 4 17 Explosive 18 | . . 18 . . Electromagnetic 11 | . . . . 11 Robot Hit Streak 9 | . . 6 5 9 Robot Miss Streak 6 | . . 4 2 6 Penetration Max . | . . . . . Secondary Targets . | . . . . . Shots Hit Robots 66 | . . 26 11 29 Core Hits 57 | . . 33 5 19 Critical Kills . | . . . . . Critical Parts Destroyed . | . . . . . Critical Strikes 1 | . . . 1 . Blast 1 | . . . 1 . Melee Attacks . | . . . . . Impact . | . . . . . Slashing . | . . . . . Piercing . | . . . . . Sneak Attacks . | . . . . . Combat Hostiles . | . . . . . Follow-up Attacks . | . . . . . Damage Inflicted 2129 | . . 1076 150 903 Guns 431 | . . 141 48 242 Cannons 206 | . . . 102 104 Explosions 1484 | . . 931 . 553 Melee . | . . . . . Ramming 8 | . . 4 . 4 Kinetic 428 | . . 141 130 157 Thermal 209 | . . . 20 189 Explosive 931 | . . 931 . . Electromagnetic 553 | . . . . 553 Impact . | . . . . . Slashing . | . . . . . Piercing . | . . . . . Highest Corruption . | . . . . . Average Corruption . | . . . . . Corruption Purged . | . . . . . Corruption Blocked . | . . . . . Overload Shots . | . . . . . Overflow Damage 41 | . . 32 . 9 Projectiles . | . . . . . Explosions 41 | . . 32 . 9 Melee . | . . . . . Knockbacks . | . . . . . Impact . | . . . . . Kinetic . | . . . . . Secondary . | . . . . . Self-Inflicted Damage 30 | . . 23 . 7 Shots 3 | . . 1 . 2 Rammed 1 | . . . . 1 Targets Rammed 3 | . . 1 1 1 Kicked 2 | . . 1 1 . Crushed . | . . . . . Highest Temperature 257 | . . 13 61 257 Average Temperature 85 | . . 4 24 121 Received Heat Transfer 1161 | . . 126 45 990 Effects 7 | . . . . 7 Energy Bleed 1 | . . . . 1 Interference 6 | . . . . 6 Siege Activations . | . . . . . Martial Activations . | . . . . . Shielding Activations . | . . . . . Robots Disrupted . | . . . . . Combat Hostiles . | . . . . . Robots Corrupted 3 | . . . . 3 Combat Hostiles 3 | . . . . 3 Parts Fried 8 | . . . . 8 Impact Corruptions . | . . . . . Robots Melted . | . . . . . Combat Hostiles . | . . . . . Parts Melted 2 | . . . . 2 Heat Transferred 388 | . . . 37 351 Parts Sabotaged . | . . . . . Parts Stolen . | . . . . . Parts Stripped . | . . . . . Power Chain Reactions . | . . . . . Alert | -11 -10 -9 -9 -8 ------- Run | Yrd Mat Mat Min Mat Maximum Alert Level 1 | . . 1 . 1 Low Security (%) 92 | 100 100 82 100 86 Level 1 7 | . . 17 . 13 Level 2 . | . . . . . Level 3 . | . . . . . Level 4 . | . . . . . Level 5 . | . . . . . High Security . | . . . . . Max Security . | . . . . . Peak Influence 272 | . 4 262 152 272 Initial 90 | . . . 90 39 Average 71 | . . 114 75 110 Influence Increases 1028 | . 4 432 189 403 Destroy 0b10 Robot/C 500 | . . 200 140 160 Destroy 0b10 Robot/NC 40 | . . 40 . . Destroy Leader 114 | . . 64 20 30 Allied During Kill 25 | . . . 22 3 Successful Hack 11 | . 4 . 7 . Disable Machine 75 | . . 30 . 45 Anti-Garrison Action 150 | . . . . 150 Destroy Structure 83 | . . 83 . . Partial Spotted 15 | . . 15 . . Lose Combat Pursuer 15 | . . . . 15 Influence Decreases 896 | . 4 200 319 373 Entered New Map 205 | . . . 142 63 Time Decay 471 | . 4 180 177 110 Lost Part 160 | . . 20 . 140 Lost Ally 60 | . . . . 60 Squads Dispatched 7 | . . 1 . 6 Investigation . | . . . . . Extermination . | . . . . . Reinforcement 2 | . . 1 . 1 Assault 2 | . . . . 2 Garrison 3 | . . . . 3 Intercept . | . . . . . Searches Triggered . | . . . . . Construction Impeded 2 | . . 1 . 1 Haulers Reinforced . | . . . . . Active Scanning Responses . | . . . . . Cargo Convoy Interrupts . | . . . . . Stealth | -11 -10 -9 -9 -8 --------- Run | Yrd Mat Mat Min Mat Distress Signals 1 | . . . . 1 Communications Jammed . | . . . . . Distress Signals . | . . . . . Times Spotted 46 | . 1 13 7 25 Peak Tracking Total 16 | . 2 4 4 16 Tactical Retreats 1 | . . . . 1 Traps | -11 -10 -9 -9 -8 ------- Run | Yrd Mat Mat Min Mat Traps Triggered . | . . . . . Indirectly . | . . . . . Trap Hack Attempts . | . . . . . Triggered . | . . . . . Disarmed . | . . . . . Reprogrammed . | . . . . . Reused . | . . . . . Traps Extracted . | . . . . . Installed . | . . . . . Triggered . | . . . . . Machines | -11 -10 -9 -9 -8 ---------- Run | Yrd Mat Mat Min Mat Machines Disabled 6 | . . 2 . 4 Max in Single Turn 1 | . . 1 . 1 Garrison Access 1 | . . . . 1 Machines Repaired . | . . . . . Machines Dismantled . | . . . . . Machines Sabotaged . | . . . . . Overloaded Fab Kills . | . . . . . Hacking | -11 -10 -9 -9 -8 --------- Run | Yrd Mat Mat Min Mat Machines Accessed 3 | . 2 . 1 . Terminals 2 | . 1 . 1 . Fabricators . | . . . . . Repair Stations . | . . . . . Recycling Units 1 | . 1 . . . Scanalyzers . | . . . . . Garrison Access . | . . . . . Total Hacks 5 | . 3 . 2 . Successful 4 | . 2 . 2 . Failed 1 | . 1 . . . Catastrophic . | . . . . . Database Lockouts . | . . . . . Manual . | . . . . . Terminals 4 | . 2 . 2 . Fabricators . | . . . . . Repair Stations . | . . . . . Recycling Units 1 | . 1 . . . Scanalyzers . | . . . . . Garrison Access . | . . . . . Terminal Hacks 3 | . 1 . 2 . Emergency Access Points 1 | . 1 . . . Dispatch Records 1 | . . . 1 . Patrol Status 1 | . . . 1 . Fabricator Hacks . | . . . . . Repair Station Hacks . | . . . . . Recycling Unit Hacks 1 | . 1 . . . Retrieve Matter 1 | . 1 . . . Scanalyzer . | . . . . . Garrison Access Hacks . | . . . . . Unauthorized Hacks . | . . . . . Terminals . | . . . . . Fabricators . | . . . . . Repair Stations . | . . . . . Recycling Units . | . . . . . Scanalyzers . | . . . . . Garrison Access . | . . . . . Data Cores Recovered . | . . . . . Used . | . . . . . Hacking Detections 1 | . . . 1 . Full Trace Events . | . . . . . Feedback Events . | . . . . . Feedback Blocked . | . . . . . Robot Schematics Acquired . | . . . . . Robots Built . | . . . . . Authchips . | . . . . . Time . | . . . . . Total Robot Build Rating . | . . . . . Part Schematics Acquired . | . . . . . Parts Built . | . . . . . Authchips . | . . . . . Time . | . . . . . Total Part Build Rating . | . . . . . Parts Repaired . | . . . . . Time . | . . . . . Parts Recycled . | . . . . . Recycled Matter . | . . . . . Retrieved Matter . | . . . . . Retrieved Components . | . . . . . Parts Scanalyzed . | . . . . . Part Schematics Acquired . | . . . . . Parts Damaged . | . . . . . Bothacking | -11 -10 -9 -9 -8 ------------ Run | Yrd Mat Mat Min Mat Used RIF Installer . | . . . . . Robots Hacked . | . . . . . Non-combat . | . . . . . Combat . | . . . . . Robot Hacks Applied . | . . . . . Relay Couplers Released 1 | . . . . 1 Machine Destruction 1 | . . . . 1 Fabnet Peak Effective % . | . . . . . Robots Rewired . | . . . . . Allies Hacked . | . . . . . Hacks Repelled . | . . . . . Allies | -11 -10 -9 -9 -8 -------- Run | Yrd Mat Mat Min Mat Total Allies 3 | . . . 3 . Largest Group 3 | . . . 3 3 Highest-Rated Group 40 | . . . 40 40 Highest-Rated Ally 16 | . . . 16 16 Total Orders 2 | . . . 2 . FOLLOW 2 | . . . 2 . Ally Attacks 39 | . . . 23 16 Total Damage 375 | . . . 213 162 Kills 4 | . . . 4 . Allies Corrupted . | . . . . . Allies Melted . | . . . . . Intel | -11 -10 -9 -9 -8 ------- Run | Yrd Mat Mat Min Mat Active Infowar (turns) 24 | . 24 . . . ECM 24 | . 24 . . . Robot Analysis Total . | . . . . . Derelict Logs Recovered 1 | . . . 1 . Drone Launches . | . . . . . Drone Recoveries . | . . . . . Exploration | -11 -10 -9 -9 -8 ------------- Run | Yrd Mat Mat Min Mat Turns Passed 1332 | 61 308 364 368 231 Spaces Moved 925 | 53 250 227 275 120 Core 68 | 22 . . . 46 Treads . | . . . . . Legs 857 | 31 250 227 275 74 Wheels . | . . . . . Hover . | . . . . . Flight . | . . . . . Fastest Speed 50 | 50 120 120 120 50 Average Speed 117 | 90 120 120 120 114 Slowest Speed 260 | 120 120 120 120 260 Overloaded Moves . | . . . . . Propulsion Burnouts . | . . . . . Robots Hopped . | . . . . . Potential Cave-ins . | . . . . . Cave-ins Triggered . | . . . . . Exploration Rate (%) 31 | 4 44 24 64 21 Regions Visited 4 Branch Regions 1 Pre-discovered Areas . | . . . . . Known Exits Taken . | . . . . . Unknown Exits Taken 4 | 1 1 1 1 . Scrap Searched 1 | . . . 1 . Spaces Dug . | . . . . . Terrain Destroyed 87 | . . 87 . . Melee . | . . . . . Projectile . | . . . . . AOE 87 | . . 87 . . Terrain Rammed . | . . . . . Walls Destroyed . | . . . . . Machines Disabled . | . . . . . Actions | -11 -10 -9 -9 -8 --------- Run | Yrd Mat Mat Min Mat Total 1065 | 64 256 279 297 169 Wait 5 | . . . 5 . Move 921 | 52 249 226 274 120 Hop . | . . . . . Pick Up 17 | 5 2 8 1 1 Fast Attach 10 | 4 3 2 1 . Attach 13 | 2 . 1 1 9 Detach 1 | 1 . . . . Swap 7 | . 1 4 2 . Drop 12 | . 1 8 3 . Fire 76 | . . 29 9 38 Melee . | . . . . . Ram 1 | . . . . 1 Kick 2 | . . 1 1 . Crush . | . . . . . Escape Stasis . | . . . . . Rewire . | . . . . . Trap . | . . . . . Miscellaneous . | . . . . . Route ------- -11/Scrapyard -10/Materials -9/Materials -9/Mines (discovered 2 exits: *Mat / [*Zio]) -8/Materials History --------- Turn | Location | Event 7 | -11/Scrapyard | Discovered new exit (range 15) 62 | -11/Scrapyard | Entered Materials 191 | -10/Materials | Discovered new exit (range 8) 330 | -10/Materials | Build established: Mutant 370 | -10/Materials | Entered another Materials area 370 | -9/Materials | Evolved 2 slots: Propulsion x2 668 | -9/Materials | Discovered new exit (range 15) 734 | -9/Materials | Entered Mines 800 | -9/Mines | Joined a pair of Derelicts in attacking an 0b10 outpost 924 | -9/Mines | Assisted by bots powering up and referring to "LRC-V3" 994 | -9/Mines | Learned location of 1 exit from Lower Caves 1074 | -9/Mines | Discovered new exit (range 8) 1081 | -9/Mines | A Derelict revealed a hidden shortcut to a safe place 1102 | -9/Mines | Entered Materials 1102 | -8/Materials | Accompanied by 3 allies 1102 | -8/Materials | Evolved 2 slots: Utility x1, Weapon x1 1175 | -8/Materials | Lost 3 allies 1276 | -8/Materials | Core integrity fell below 50% 1302 | -8/Materials | Core integrity fell below 20% 1309 | -8/Materials | Lost 11 parts (1p5n2u3w) 1333 | -8/Materials | Destroyed by B-36 Bruiser with Hammer Last Messages --------------- Connecting with Repair Station... Current location identified: Materials Critical hit (Burn: +37). C-30 ARC bursts open, deploying its payload. G-50 Soldier unfolds itself. L-31 Rogue unfolds itself. B-36 Bruiser unfolds itself. L-31 Rogue unfolds itself. I-25 Savior unfolds itself. K-01 Serf collects debris. K-01 Serf cleans the Pressure Siphon. Slammed into A-02 Transporter. K-01 Serf collects debris. K-01 Serf cleans the Pressure Siphon. Sml. Storage Unit destroyed. K-01 Serf cleans the Pressure Siphon. Acquired Field Laser. Critical hit (Burn: +37). Lgt. Ion Engine destroyed. K-01 Serf collects debris. Map ----- +----------------------------------------------------+ | ??????????????????????????????????????????? | | ??????????????????????????????????????????? | | ??????????????????????????????????????????? | | ??????????????????????????????????????????? | | ??????????????????????????????????????????? | | ??????????????????????????????????????????? | | ??????????????????????????????????????????? | | ??????????????????????????????????????????? | | ??????????????????????????????????????????? | | ??????????????????????????????????????????? | | ??????????????????????????????????????????? | | ??????????????????????????????????????????? | | ??????????????????????????????????????????? | | ??????????????????????????????????????????? | | ??????????????????????????????????????????? | | ??????????????????????????????????????????? | | ??????????????????????????????????????????? | | ???????????????????????????????+??????????? | | ?????????????????????????????? #??????????? | | ????????????????????????????? ???????????? | | ????????????????????????#####+##??????????? | | ????????????????????????#| #???#??????? | | ????????????????????????# g""" #? #??????? | | ????????????????????????#! """ # #??????? | | ????????????????????????# """ + #??????? | | ????????????????????????#@ g #? #??????? | | ????????????????????????#lb # #??????? | | ????????????????????????#g###### ##?????? | | ??????????###+###########g##### #?????? | | ????????? g #?????? | | ????????? ll #?????? | | ????????? #?????? | | ??????????####### #?????? | | ????????????????# ####?????? | | ????????????????# """"i """" #????????? | | ??????########### """"g """" #????????? | | ??????# # """"% """" #???????? | | ??????# """ """ # + "???? | | ??????# "R" """ # k #???????? | | ??????# " " """ # """" """" #???????? | | ??????# """ # """" """" #???????? | | ??????# = # """" """" #???????? | | ??????# # #???????? | | ??????# # #???????? | | ###########/##### "" """" #???????? | | ! "T """" ??????????? | | "" """"????????????? | | """ " ????????????? | | ######### """ "%" ???????????? | | ???????## """ ^ " ???????????? | +----------------------------------------------------+ Best States ------------- Heat Dissipation 53 Energy Generation 12 Energy Capacity 515 Matter Stores 300 Matter Capacity 300 Sight Range 16 Terrain Scan Density 10 ECM Strength 1 Armor Coverage 150 Evasion (%) 55 Recoil Reduction 2 Item Schematics ----------------- None Robot Schematics ------------------ None Fabricated ------------ Nothing Repaired ---------- Nothing Alien Tech Used ----------------- None Achievements -------------- None Challenges ------------ None Game ------ Seed PowerSuperdenseDetector Manual? 0 Play Time 00:26:21 Cumulative 2.3 hours Start 2025.05.27 @ 18:49:57 End 2025.05.27 @ 20:37:47 Sessions 3 Manual Loads 0 Difficulty Rogue Special Mode None Game No. 5 Rogue 5 Adventurer 0 Explorer 0 Win Type - Total 0 Types 0/0/0/0/0/0/0/0/0/0 Lore% 1 Gallery% 5 Achievement% 6 Wizard Run 0 Options --------- Layout 1 ASCII 0 Keyboard 0 Movement Mouse Keybinds 0 Fullscreen 1 Font 28/SmallcapsGlow Map View 55x38 Zoom Use 0% Tactical HUD 0 Map Filters NONE Filters NONE Steam 1 RUN: ead23dd4-03f5-4a43-a6f1-4f4f4cb8a093